[Event "58th Akiba Rubinstein D 2022"]
[Site "Polanica-Zdroj"]
[Date "2022.08.20"]
[Round "8.26"]
[White "Grzelak, Piotr"]
[Black "Durzynski, Jan"]
[Result "*"]
[ECO "B38"]
[WhiteElo "1684"]
[BlackElo "1406"]
[Annotator "NA RC"]
[PlyCount "74"]
[EventDate "2022.08.13"]
[EventCountry "POL"]
[SourceTitle "playchess.com"]
[Source "ChessBase"]
[SourceQuality "1"]
[TimeControl "40/5400+30:1800+30"]

1. e4 {[%emt 0:10:55]} c5 {[%emt 0:00:07]} 2. c4 {[%emt 0:00:04]} Nc6 {[%emt 0:00:13]} 3. Ne2 {[%emt 0:00:20]} g6 {[%emt 0:00:18]} 4. d4 {[%emt 0:00:06]} cxd4 {[%emt 0:00:12]} 5. Nxd4 {[%emt 0:00:03]} Bg7 {[%emt 0:00:19]} 6. Be3 {[%emt 0:00:13]} Nf6 {[%emt 0:00:38]} 7. Nc3 {[%emt 0:00:14]} O-O {[%emt 0:01:03]} 8. Be2 {[%emt 0:00:05]} d6 {[%emt 0:00:44]} 9. Qd2 Nxd4 {[%emt 0:01:35]} 10. Bxd4 {[%emt 0:04:17]} b6 {[%emt 0:01:24]} 11. f3 {[%emt 0:00:27]} Nd7 {[%emt 0:01:17]} 12. Be3 {[%emt 0:02:50]} Bb7 {[%emt 0:00:54]} 13. O-O {[%emt 0:00:20]} Rc8 {[%emt 0:02:01]} 14. Rac1 {[%emt 0:00:45]} Ne5 {[%emt 0:03:19]} 15. b3 {[%emt 0:00:55]} a6 16. Nd5 {[%emt 0:00:40]} Nd7 {[%emt 0:05:14]} 17. Rfd1 Re8 {[%emt 0:00:45]} 18. Kh1 {[%emt 0:06:25]} e6 {[%emt 0:01:05]} 19. Nc3 {[%emt 0:02:28]} Bf8 {[%emt 0:00:44]} 20. Bg5 {[%emt 0:02:37]} Qc7 21. f4 {[%emt 0:01:09]} Nc5 {[%emt 0:02:14]} 22. Bf3 {[%emt 0:01:17]} Bc6 {[%emt 0:04:36]} 23. Nd5 {[%emt 0:04:15]} exd5 {[%emt 0:02:59]} 24. cxd5 {[%emt 0:00:52]} Bd7 {[%emt 0:02:03]} 25. b4 {[%emt 0:00:10]} Rb8 {[%emt 0:00:36]} 26. bxc5 {[%emt 0:01:13]} bxc5 {[%emt 0:00:09]} 27. e5 {[%emt 0:00:40]} dxe5 {[%emt 0:01:05]} 28. fxe5 Bg7 {[%emt 0:01:03]} 29. d6 {[%emt 0:05:06]} Qb6 {[%emt 0:00:24]} 30. Bf6 {[%emt 0:03:33]} Bxf6 {[%emt 0:00:59]} 31. exf6 {[%emt 0:00:03]} Qd8 {[%emt 0:01:49]} 32. Bd5 {[%emt 0:02:23]} Qc7 {[%emt 0:00:00]} 33. Bf3 {[%emt 0:00:00]} Qd8 {[%emt 0:01:00]} 34. Bd5 {[%emt 0:01:00]} Qxf6 {[%emt 0:02:52]} 35. Rf1 {[%emt 0:00:22]} Bf5 {[%emt 0:00:05]} 36. Rfd1 Bd7 {[%emt 0:00:55]} 37. Rf1 {[%emt 0:01:00]} Bf5 {[%emt 0:00:05]} *

[Event "58th Akiba Rubinstein D 2022"]
[Site "Polanica-Zdroj"]
[Date "2022.08.20"]
[Round "8.27"]
[White "Grudzinski, Krzysztof"]
[Black "Wziatek, Marek"]
[Result "*"]
[ECO "D35"]
[WhiteElo "1520"]
[BlackElo "1617"]
[Annotator "NA RC"]
[PlyCount "37"]
[EventDate "2022.08.13"]
[EventCountry "POL"]
[SourceTitle "playchess.com"]
[Source "ChessBase"]
[SourceQuality "1"]
[TimeControl "40/5400+30:1800+30"]

1. d4 {[%emt 0:00:07]} d5 {[%emt 0:00:19]} 2. c4 {[%emt 0:00:15]} e6 {[%emt 0:00:24]} 3. Nc3 {[%emt 0:00:19]} Nf6 {[%emt 0:00:48]} 4. cxd5 {[%emt 0:00:27]} exd5 {[%emt 0:00:02]} 5. Bg5 {[%emt 0:00:18]} Be7 {[%emt 0:00:10]} 6. Qc2 {[%emt 0:00:23]} O-O {[%emt 0:00:40]} 7. e3 {[%emt 0:00:14]} b6 {[%emt 0:03:53]} 8. Bd3 {[%emt 0:02:05]} h6 {[%emt 0:00:30]} 9. Bh4 c5 {[%emt 0:03:14]} 10. Nf3 {[%emt 0:07:29]} Nc6 {[%emt 0:01:29]} 11. a3 {[%emt 0:25:02]} Bg4 12. dxc5 {[%emt 0:05:58]} bxc5 {[%emt 0:07:37]} 13. Be2 {[%emt 0:00:53]} Be6 {[%emt 0:12:10]} 14. O-O {[%emt 0:03:02]} c4 {[%emt 0:07:52]} 15. Rad1 {[%emt 0:09:30]} Qa5 {[%emt 0:00:00]} 16. Ra1 {[%emt 0:00:00]} Qd8 {[%emt 0:01:00]} 17. Rad1 {[%emt 0:01:00]} Qa5 {[%emt 0:04:12]} 18. Nd4 {[%emt 0:06:11]} Nxd4 {[%emt 0:00:48]} 19. Rxd4 {[%emt 0:00:22]} *

[Event "58th Akiba Rubinstein D 2022"]
[Site "Polanica-Zdroj"]
[Date "2022.08.20"]
[Round "8.29"]
[White "Balcerzak, Robert"]
[Black "Litwin, Tomasz"]
[Result "*"]
[ECO "C15"]
[WhiteElo "1357"]
[BlackElo "1580"]
[Annotator "NA RC"]
[PlyCount "41"]
[EventDate "2022.08.13"]
[EventCountry "POL"]
[SourceTitle "playchess.com"]
[Source "ChessBase"]
[SourceQuality "1"]
[TimeControl "40/5400+30:1800+30"]

1. e4 {[%emt 0:00:05]} e6 {[%emt 0:00:07]} 2. d4 {[%emt 0:01:15]} d5 {[%emt 0:00:02]} 3. Nc3 {[%emt 0:00:34]} Bb4 {[%emt 0:00:07]} 4. Nge2 {[%emt 0:00:39]} c5 {[%emt 0:01:24]} 5. exd5 {[%emt 0:10:53]} Qxd5 {[%emt 0:05:07]} 6. a3 {[%emt 0:00:30]} Bxc3+ {[%emt 0:00:05]} 7. Nxc3 {[%emt 0:00:02]} Qxd4 8. Qxd4 {[%emt 0:20:14]} cxd4 {[%emt 0:01:06]} 9. Nb5 {[%emt 0:00:18]} Na6 {[%emt 0:00:04]} 10. Nxd4 {[%emt 0:07:32]} Nc7 {[%emt 0:18:10]} 11. Bf4 {[%emt 0:00:30]} Nd5 {[%emt 0:01:17]} 12. Bg3 {[%emt 0:03:17]} a6 13. c4 {[%emt 0:07:08]} Nde7 {[%emt 0:04:51]} 14. Be2 Nh6 {[%emt 0:01:59]} 15. O-O {[%emt 0:10:48]} O-O {[%emt 0:00:17]} 16. Rfd1 f6 {[%emt 0:15:12]} 17. Bc7 {[%emt 0:07:01]} e5 {[%emt 0:04:03]} 18. Nb3 {[%emt 0:06:44]} Bg4 {[%emt 0:01:34]} 19. Bxg4 {[%emt 0:01:43]} Nxg4 {[%emt 0:00:03]} 20. Na5 Nc6 {[%emt 0:19:54]} 21. Nxc6 {[%emt 0:05:11]} *

[Event "58th Akiba Rubinstein D 2022"]
[Site "Polanica-Zdroj"]
[Date "2022.08.21"]
[Round "9.1"]
[White "Jasiulewicz, Dawid"]
[Black "Kraczek, Cezary"]
[Result "1/2-1/2"]
[ECO "A46"]
[WhiteElo "1525"]
[BlackElo "1657"]
[Annotator "NA RC"]
[PlyCount "209"]
[EventDate "2022.08.13"]
[EventCountry "POL"]
[SourceTitle "playchess.com"]
[Source "ChessBase"]
[SourceQuality "1"]
[TimeControl "40/5400+30:1800+30"]

1. d4 {[%emt 0:00:02]} Nf6 {[%emt 0:00:03]} 2. Nf3 {[%emt 0:00:05]} e6 {[%emt 0:00:03]} 3. c4 {[%emt 0:00:04]} d5 {[%emt 0:00:03]} 4. e3 {[%emt 0:00:26]} Be7 {[%emt 0:01:00]} 5. Nc3 {[%emt 0:00:56]} O-O {[%emt 0:01:04]} 6. Bd3 {[%emt 0:00:17]} dxc4 {[%emt 0:00:10]} 7. Bxc4 {[%emt 0:00:02]} a6 {[%emt 0:00:08]} 8. O-O {[%emt 0:00:05]} c5 {[%emt 0:00:08]} 9. Qe2 {[%emt 0:00:05]} cxd4 {[%emt 0:06:26]} 10. exd4 {[%emt 0:00:17]} b5 {[%emt 0:00:41]} 11. Bb3 {[%emt 0:02:34]} Bb7 {[%emt 0:02:13]} 12. Rd1 {[%emt 0:00:54]} Re8 {[%emt 0:02:45]} 13. Ne5 {[%emt 0:07:55]} Bf8 {[%emt 0:09:06]} 14. Bg5 {[%emt 0:01:01]} h6 {[%emt 0:08:14]} 15. Bh4 {[%emt 0:05:20]} g5 {[%emt 0:06:15]} 16. Bg3 {[%emt 0:00:35]} Nbd7 {[%emt 0:06:20]} 17. h4 {[%emt 0:06:10]} Bg7 {[%emt 0:04:44]} 18. Bc2 {[%emt 0:06:22]} Nd5 {[%emt 0:13:13]} 19. hxg5 {[%emt 0:09:48]} Nxe5 {[%emt 0:03:56]} 20. gxh6 {[%emt 0:03:59]} Nxc3 {[%emt 0:02:30]} 21. bxc3 {[%emt 0:01:42]} Qd5 {[%emt 0:04:03]} 22. f3 {[%emt 0:07:37]} Ng6 {[%emt 0:02:20]} 23. hxg7 {[%emt 0:01:22]} Qg5 {[%emt 0:03:16]} 24. Kf2 {[%emt 0:07:46]} Kxg7 {[%emt 0:02:24]} 25. a4 {[%emt 0:03:09]} Rec8 {[%emt 0:07:41]} 26. Ra3 {[%emt 0:03:13]} Bd5 {[%emt 0:01:50]} 27. Bd3 {[%emt 0:03:13]} Nf4 {[%emt 0:02:19]} 28. Bxf4 {[%emt 0:01:42]} Qxf4 {[%emt 0:00:02]} 29. Qe3 {[%emt 0:04:48]} Qh4+ {[%emt 0:02:13]} 30. Ke2 {[%emt 0:00:02]} bxa4 {[%emt 0:01:03]} 31. Bc2 {[%emt 0:02:16]} Qg3 {[%emt 0:02:23]} 32. Rg1 {[%emt 0:02:46]} Rab8 {[%emt 0:01:21]} 33. Kd1 {[%emt 0:03:09]} Bb3 {[%emt 0:01:40]} 34. Kc1 {[%emt 0:02:59]} Qd6 {[%emt 0:02:26]} 35. Ra1 {[%emt 0:01:09]} Bxc2 {[%emt 0:00:55]} 36. Kxc2 {[%emt 0:00:47]} Rb3 {[%emt 0:00:19]} 37. Rxa4 {[%emt 0:00:49]} Rcxc3+ {[%emt 0:00:36]} 38. Qxc3 {[%emt 0:00:01]} Rxc3+ {[%emt 0:00:07]} 39. Kxc3 {[%emt 0:00:02]} Qf4 {[%emt 0:01:16]} 40. Re1 {[%emt 0:01:31]} Qc7+ {[%emt 0:00:38]} 41. Kd3 {[%emt 0:30:29]} Qb7 {[%emt 0:30:41]} 42. Kc3 {[%emt 0:03:34]} Qc6+ {[%emt 0:00:39]} 43. Rc4 {[%emt 0:00:16]} Qd6 {[%emt 0:00:32]} 44. Ra1 {[%emt 0:00:31]} Qf4 {[%emt 0:00:34]} 45. Re1 {[%emt 0:01:20]} Qg5 {[%emt 0:00:32]} 46. Re2 {[%emt 0:01:07]} Qc1+ {[%emt 0:00:17]} 47. Kd3 {[%emt 0:00:12]} Qb1+ {[%emt 0:00:26]} 48. Rec2 {[%emt 0:01:15]} a5 {[%emt 0:00:14]} 49. Kd2 {[%emt 0:01:55]} Qg1 {[%emt 0:01:13]} 50. Kd3 {[%emt 0:00:51]} Qa1 {[%emt 0:00:35]} 51. Rd2 {[%emt 0:01:37]} a4 {[%emt 0:00:47]} 52. Rcc2 {[%emt 0:00:17]} Qb1 {[%emt 0:00:23]} 53. Ke3 {[%emt 0:00:30]} Qg1+ {[%emt 0:00:29]} 54. Kf4 {[%emt 0:01:36]} Qh2+ {[%emt 0:00:36]} 55. Ke4 {[%emt 0:00:05]} Qh4+ {[%emt 0:01:26]} 56. Kd3 {[%emt 0:00:11]} Qe1 {[%emt 0:00:13]} 57. Kc4 {[%emt 0:01:52]} Qb1 {[%emt 0:00:41]} 58. Rb2 {[%emt 0:00:10]} Qc1+ {[%emt 0:00:22]} 59. Kb4 {[%emt 0:00:14]} Qc6 {[%emt 0:00:18]} 60. Ra2 {[%emt 0:00:51]} Qb6+ {[%emt 0:00:26]} 61. Kxa4 {[%emt 0:00:17]} Qb7 {[%emt 0:00:34]} 62. Rab2 {[%emt 0:00:08]} Qa6+ {[%emt 0:00:08]} 63. Kb4 {[%emt 0:00:21]} Qb6+ {[%emt 0:00:11]} 64. Kc3 {[%emt 0:00:26]} Qa6 {[%emt 0:00:41]} 65. Rb3 {[%emt 0:01:10]} Qa1+ {[%emt 0:00:20]} 66. Kd3 {[%emt 0:00:13]} Qf1+ {[%emt 0:00:20]} 67. Kc2 {[%emt 0:00:26]} Qa1 {[%emt 0:00:13]} 68. Rc3 {[%emt 0:01:52]} Qa4+ {[%emt 0:00:17]} 69. Kd3 {[%emt 0:00:14]} Qb5+ {[%emt 0:00:14]} 70. Ke3 {[%emt 0:00:13]} Qg5+ {[%emt 0:00:17]} 71. Kd3 {[%emt 0:00:11]} Qb5+ {[%emt 0:00:04]} 72. Kc2 {[%emt 0:01:15]} Qa4+ {[%emt 0:00:21]} 73. Rb3 {[%emt 0:00:20]} Qa2+ {[%emt 0:00:49]} 74. Kc3 {[%emt 0:00:04]} Qa1+ {[%emt 0:00:20]} 75. Rbb2 {[%emt 0:02:07]} Qa3+ {[%emt 0:00:31]} 76. Kc2 {[%emt 0:00:34]} Qa4+ {[%emt 0:00:16]} 77. Kb1 {[%emt 0:00:27]} Qc4 {[%emt 0:00:14]} 78. Rd1 {[%emt 0:00:23]} Qa4 {[%emt 0:00:35]} 79. Kc1 {[%emt 0:00:16]} Qa1+ {[%emt 0:01:30]} 80. Kc2 {[%emt 0:00:04]} Qa4+ {[%emt 0:00:20]} 81. Rb3 {[%emt 0:00:04]} Qa2+ {[%emt 0:00:16]} 82. Kc3 {[%emt 0:00:07]} Qxg2 {[%emt 0:00:23]} 83. Rd3 {[%emt 0:00:43]} Qg1 {[%emt 0:00:43]} 84. Rb2 {[%emt 0:00:34]} Kf6 {[%emt 0:00:36]} 85. Rc2 {[%emt 0:01:22]} Qe1+ {[%emt 0:01:34]} 86. Rcd2 {[%emt 0:00:10]} Qc1+ {[%emt 0:00:18]} 87. Rc2 {[%emt 0:00:03]} Qe1+ {[%emt 0:00:42]} 88. Rcd2 {[%emt 0:00:05]} Qa1+ {[%emt 0:00:14]} 89. Kc2 {[%emt 0:00:06]} Qa4+ {[%emt 0:00:09]} 90. Kc1 {[%emt 0:00:10]} Qa1+ {[%emt 0:00:50]} 91. Kc2 {[%emt 0:00:07]} Ke7 {[%emt 0:01:13]} 92. d5 {[%emt 0:00:30]} Qa4+ {[%emt 0:00:42]} 93. Kb2 {[%emt 0:00:19]} Qb4+ {[%emt 0:00:24]} 94. Ka1 {[%emt 0:00:54]} exd5 95. Rxd5 {[%emt 0:00:25]} Qa3+ {[%emt 0:00:53]} 96. Kb1 {[%emt 0:00:04]} Qb3+ {[%emt 0:00:04]} 97. Kc1 {[%emt 0:00:06]} Qxf3 {[%emt 0:00:24]} 98. Re5+ {[%emt 0:01:09]} Kf6 {[%emt 0:00:25]} 99. Ree2 {[%emt 0:00:06]} Qc3+ {[%emt 0:00:16]} 100. Kd1 {[%emt 0:00:10]} Qa1+ {[%emt 0:00:13]} 101. Kc2 {[%emt 0:00:05]} Qa2+ {[%emt 0:00:03]} 102. Kd3 {[%emt 0:00:08]} Qb3+ {[%emt 0:00:23]} 103. Kd4 {[%emt 0:00:06]} Kg7 {[%emt 0:00:56]} 104. Rg2+ {[%emt 0:00:09]} Kf8 {[%emt 0:00:19]} 105. Rgf2 {[%emt 0:00:20]} 1/2-1/2

[Event "58th Akiba Rubinstein D 2022"]
[Site "Polanica-Zdroj"]
[Date "2022.08.21"]
[Round "9.2"]
[White "Liskiewicz, Jakub"]
[Black "Galuszka, Kamil"]
[Result "0-1"]
[ECO "E40"]
[WhiteElo "1910"]
[BlackElo "1976"]
[Annotator "NA RC"]
[PlyCount "66"]
[EventDate "2022.08.13"]
[EventCountry "POL"]
[SourceTitle "playchess.com"]
[Source "ChessBase"]
[SourceQuality "1"]
[TimeControl "40/5400+30:1800+30"]

1. d4 {[%emt 0:00:03]} e6 {[%emt 0:00:04]} 2. c4 {[%emt 0:00:06]} Nf6 {[%emt 0:00:17]} 3. Nc3 {[%emt 0:00:13]} Bb4 {[%emt 0:00:21]} 4. e3 {[%emt 0:00:16]} d5 {[%emt 0:00:41]} 5. Bd3 {[%emt 0:00:22]} e5 {[%emt 0:00:53]} 6. dxe5 {[%emt 0:01:43]} dxc4 {[%emt 0:01:02]} 7. Bxc4 {[%emt 0:00:14]} ({But not} 7. exf6 cxd3 8. fxg7 Rg8 $15) 7... Qxd1+ {[%emt 0:01:30]} 8. Kxd1 {[%emt 0:00:09]} Ng4 {[%emt 0:00:06]} 9. Nd5 {[%emt 0:00:40]} Ba5 {[%emt 0:00:37]} 10. Ke2 {[%emt 0:04:27]} c6 {[%emt 0:05:20]} 11. Nf4 {[%emt 0:06:41]} Nxe5 {[%emt 0:01:06]} 12. Bb3 {[%emt 0:00:35]} b6 {[%emt 0:04:30]} 13. f3 $2 {[%emt 0:05:18]} (13. Bd2 $15) 13... Ba6+ {[%emt 0:02:28]} 14. Kf2 {[%emt 0:00:10]} g5 {[%emt 0:01:05]} 15. Nfe2 {[%emt 0:05:49]} Nd3+ {[%emt 0:03:37]} 16. Kf1 {[%emt 0:00:24]} Nxc1 {[%emt 0:03:45]} 17. Rxc1 {[%emt 0:00:09]} Bd2 {[%emt 0:00:03]} 18. Rc2 {[%emt 0:05:30]} Bxe3 {[%emt 0:00:26]} 19. g4 {[%emt 0:01:26]} (19. Rc3 $17 Bd4 20. Rc2) 19... h5 {[%emt 0:20:00]} 20. Kg2 {[%emt 0:03:42]} (20. gxh5 $17 Nd7 21. Bc4) 20... Nd7 {[%emt 0:11:49]} 21. Ng3 {[%emt 0:08:56]} hxg4 {[%emt 0:07:26]} 22. fxg4 {[%emt 0:03:55]} Nc5 {[%emt 0:00:50]} 23. Nf3 $19 {[%emt 0:01:33] [#]} (23. Bc4 $17) 23... O-O-O {[%emt 0:00:54]} (23... Nd3 $1 $19 {[%cal Rd3f4]} 24. Rb1 O-O-O) 24. Ne5 {[%emt 0:06:28]} Rhf8 {[%emt 0:05:23]} 25. Bc4 {[%emt 0:11:05]} Bxc4 {[%emt 0:01:39]} 26. Nxc4 {[%emt 0:00:20]} Bf4 {[%emt 0:00:03]} 27. Nf5 {[%emt 0:01:01]} Kb7 {[%emt 0:01:00]} 28. Re1 {[%emt 0:01:32]} Ne6 {[%emt 0:00:41]} 29. Nh6 {[%emt 0:05:08]} Rh8 {[%emt 0:01:13]} 30. Nxf7 {[%emt 0:03:52]} Rxh2+ {[%emt 0:00:05]} 31. Kf3 {[%emt 0:00:11]} Rd3+ {[%emt 0:02:00]} 32. Re3 {[%emt 0:02:08]} Rxe3+ {[%emt 0:02:03]} 33. Nxe3 {[%emt 0:00:09]} Nd4+ {[%emt 0:00:02]} 0-1

[Event "58th Akiba Rubinstein D 2022"]
[Site "Polanica-Zdroj"]
[Date "2022.08.21"]
[Round "9.3"]
[White "Straszewski, Tomasz"]
[Black "Mareau, Timothe"]
[Result "0-1"]
[ECO "A04"]
[WhiteElo "1716"]
[BlackElo "1590"]
[Annotator "NA RC"]
[PlyCount "106"]
[EventDate "2022.08.13"]
[EventCountry "POL"]
[SourceTitle "playchess.com"]
[Source "ChessBase"]
[SourceQuality "1"]
[TimeControl "40/5400+30:1800+30"]

1. Nf3 {[%emt 0:00:05]} b6 {[%emt 0:00:09]} 2. e4 {[%emt 0:00:06]} Bb7 {[%emt 0:00:08]} 3. Nc3 {[%emt 0:00:06]} e6 {[%emt 0:00:09]} 4. d4 {[%emt 0:00:06]} Bb4 {[%emt 0:00:08]} 5. Bd3 {[%emt 0:00:07]} Nf6 {[%emt 0:00:26]} 6. Nd2 {[%emt 0:00:09]} d5 {[%emt 0:02:28]} 7. e5 {[%emt 0:01:20]} Ne4 {[%emt 0:00:07]} 8. Qg4 {[%emt 0:01:47]} Nxc3 {[%emt 0:07:10]} 9. Qxg7 {[%emt 0:03:23]} Kd7 {[%emt 0:02:12]} 10. Qxf7+ {[%emt 0:03:53]} Qe7 {[%emt 0:00:01]} 11. Qxe7+ {[%emt 0:00:10]} Kxe7 {[%emt 0:00:08]} 12. a3 {[%emt 0:00:11]} Ba5 {[%emt 0:03:13]} 13. b4 {[%emt 0:00:31]} Nc6 {[%emt 0:05:34]} 14. bxa5 {[%emt 0:01:13]} Nxa5 {[%emt 0:00:55]} 15. a4 {[%emt 0:07:29]} Bc6 {[%emt 0:01:49]} 16. Nb3 {[%emt 0:09:16]} Nc4 {[%emt 0:03:33]} 17. a5 {[%emt 0:01:06]} Bb5 {[%emt 0:11:31]} 18. O-O {[%emt 0:04:52]} c5 {[%emt 0:11:02]} 19. Bg5+ {[%emt 0:10:17]} Kf7 {[%emt 0:02:44]} 20. f4 {[%emt 0:08:40]} Ne3 {[%emt 0:05:56]} 21. Rf3 {[%emt 0:02:56]} Bxd3 {[%emt 0:02:31]} 22. Rxe3 {[%emt 0:00:42]} c4 {[%emt 0:03:57]} 23. Nc1 {[%emt 0:03:47]} Nd1 {[%emt 0:00:22]} 24. Re1 {[%emt 0:00:13]} Bxc2 {[%emt 0:00:23]} 25. Re2 {[%emt 0:02:24]} Ba4 {[%emt 0:00:41]} 26. Rxa4 {[%emt 0:01:15]} Nc3 {[%emt 0:00:10]} 27. Ra1 {[%emt 0:00:52]} Nxe2+ {[%emt 0:00:10]} 28. Nxe2 {[%emt 0:00:01]} b5 {[%emt 0:01:52]} 29. Rb1 {[%emt 0:00:06]} Rab8 {[%emt 0:00:32]} 30. Rb4 {[%emt 0:00:01]} a6 {[%emt 0:02:57]} 31. Nc3 {[%emt 0:00:58]} h5 {[%emt 0:01:12]} 32. g3 {[%emt 0:02:27]} Kg6 {[%emt 0:02:12]} 33. Kg2 {[%emt 0:00:12]} Rh7 {[%emt 0:01:13]} 34. Kf3 {[%emt 0:01:08]} Rbb7 {[%emt 0:02:24]} 35. h3 {[%emt 0:00:42]} Rb8 {[%emt 0:01:12]} 36. Na4 {[%emt 0:00:12]} bxa4 {[%emt 0:12:02]} 37. Rxb8 {[%emt 0:00:19]} a3 {[%emt 0:00:08]} 38. Rb4 {[%emt 0:08:14]} Rb7 {[%emt 0:05:09]} 39. Ra4 {[%emt 0:00:39]} c3 {[%emt 0:01:27]} 40. Ke2 {[%emt 0:03:08]} Rb2+ {[%emt 0:02:53]} 41. Kd3 {[%emt 0:32:41]} c2 {[%emt 0:30:17]} 42. Kd2 {[%emt 0:00:16]} a2 {[%emt 0:00:07]} 43. Kc1 {[%emt 0:00:33]} Rb1+ {[%emt 0:00:08]} 44. Kxc2 {[%emt 0:00:02]} a1=Q 45. Rxa1 {[%emt 0:00:04]} Rxa1 {[%emt 0:00:17]} 46. Bd8 {[%emt 0:00:03]} Kf5 {[%emt 0:01:13]} 47. g4+ {[%emt 0:00:08]} hxg4 {[%emt 0:00:12]} 48. hxg4+ {[%emt 0:00:08]} Kxf4 {[%emt 0:00:41]} 49. g5 {[%emt 0:00:26]} Ra3 {[%emt 0:00:45]} 50. g6 {[%emt 0:02:25]} Rg3 {[%emt 0:00:07]} 51. Bb6 {[%emt 0:00:36]} Ke4 {[%emt 0:01:22]} 52. g7 {[%emt 0:00:49]} Rxg7 {[%emt 0:00:06]} 53. Kc3 {[%emt 0:00:01]} Rg1 {[%emt 0:00:31]} 0-1